Cogmind - Beta 13 @@@ ROGUE MODE // 2024.07.04 @ 23:31:50 Player: Berg Result: Destroyed by Nuclear Core chain reaction Performance ------------- Evolutions (0) 0 Regions Visited (3) 600 Robots Destroyed (26) 130 Value Destroyed (527) 527 Prototype IDs (0) 0 Alien Tech Used (0) 0 Bonus (0) 0 TOTAL SCORE: 1257 Bonus ------- None Cogmind --------- Core Integrity 0/250 Matter 7/300 Energy 99/100 System Corruption 4% Temperature Cool (0) Movement Core (50) Location -10/Exiles Parts ------- > --- POWER (1) -------- (None) > --- PROPULSION (2) --- (None) > --- UTILITY (2) ------ (None) > --- WEAPON (2) ------- Mini Grenade Launcher > --- INVENTORY (5) ---- Ion Engine Hardened Light Armor Plating Hardened Light Armor Plating Heavy Assault Rifle Heavy Assault Rifle Peak State ------------ > --- POWER ------------ Light Ion Engine > --- PROPULSION ------- Light Treads Light Treads > --- UTILITY ---------- Medium Storage Unit Hardened Light Armor Plating > --- WEAPON ----------- Heavy Assault Rifle Heavy Assault Rifle > --- INVENTORY -------- Light Ion Engine Light Treads Aluminum Leg Aluminum Leg High-capacity Matter Pod Light Assault Rifle Heavy Assault Rifle Heavy Assault Rifle Mini Grenade Launcher Mini Grenade Launcher [Rating: 11] Favorites ----------- Power Light Ion Engine Engine Light Ion Engine Propulsion Light Treads Treads Light Treads Utility Medium Storage Unit Device Seismic Detector Storage Medium Storage Unit Processor Signal Interpreter Protection Hardened Light Armor Plating Weapon Heavy Assault Rifle Energy Gun EM Pulse Gun Ballistic Gun Heavy Assault Rifle Launcher Mini Grenade Launcher Build | -11 -10 -10 -10 ------- Run | Yrd Mat Min Exi Slots Evolved . | . . . . Power . | . . . . Propulsion . | . . . . Utility . | . . . . Weapon . | . . . . Parts Attached 25 | 8 11 1 5 Power 2 | 1 1 . . Engine 2 | 1 1 . . Core . | . . . . Reactor . | . . . . Propulsion 4 | 2 1 . 1 Treads 4 | 2 1 . 1 Leg . | . . . . Wheel . | . . . . Hover . | . . . . Flight . | . . . . Utility 6 | 2 3 . 1 Device 1 | 1 . . . Storage 3 | 1 1 . 1 Processor 1 | . 1 . . Hackware . | . . . . Protection 1 | . 1 . . Artifact . | . . . . Weapon 13 | 3 6 1 3 Energy Gun 1 | 1 . . . Energy Cannon . | . . . . Ballistic Gun 8 | 2 5 . 1 Ballistic Cannon . | . . . . Launcher 4 | . 1 1 2 Special Weapon . | . . . . Impact Weapon . | . . . . Slashing Weapon . | . . . . Piercing Weapon . | . . . . Special Melee Weapon . | . . . . Unidentified Prototypes . | . . . . Parts Lost 7 | . . . 7 Power 1 | . . . 1 Propulsion 3 | . . . 3 Utility 1 | . . . 1 Weapon 2 | . . . 2 Highest Loss Streak 5 | . . . 5 To Critical Strikes 5 | . . . 5 Average Slot Usage (%) 97 | . 100 100 82 Engine 13 | . 14 14 11 Treads 26 | . 28 28 19 Device 3 | . 4 . . Storage 13 | . 14 14 12 Processor 2 | . 2 . . Protection 8 | . 7 14 12 Energy Gun 2 | . 2 . . Ballistic Gun 19 | . 20 26 11 Launcher 6 | . 5 1 13 Naked Turns . | . . . . Heaviest Build 25 | 13 24 25 25 Greatest Support 40 | 40 40 40 40 Greatest Overweight (x) 1 | . . . 1 Average Overweight (x) . | . . . . Largest Inventory Capacity 10 | 8 10 10 10 Average Capacity 9 | 7 9 10 8 Most Carried 10 | 4 10 10 10 Average Carried 8 | 2 8 10 8 Final Capacity 10 | 8 10 10 5 Final Carried 10 | 4 10 10 5 Class Distribution -------------------- 100% | Mutant Dominant Class ---------------- Mutant | -10/Materials Mutant | -10/Mines Mutant | -10/Exiles Resources | -11 -10 -10 -10 ----------- Run | Yrd Mat Min Exi Matter Collected 1239 | 278 703 56 202 Remotely . | . . . . Salvage Created 800 | 54 671 56 19 Parts 69 | 11 56 2 . Haulers Intercepted 2 | . 2 . . Recyclers Shooed . | . . . . Parts Field Recycled . | . . . . Retrieved Matter . | . . . . Parts Self-Destructed . | . . . . Prevented . | . . . . Kills | -11 -10 -10 -10 ------- Run | Yrd Mat Min Exi Combat Hostiles Destroyed 20 | . 13 . 7 Guns 15 | . 13 . 2 AOE 5 | . . . 5 Classes Destroyed 10 | 1 7 1 1 Worker 2 | . 2 . . Builder 1 | . 1 . . Tunneler 3 | 3 . . . Hauler 2 | . 2 . . Recycler 1 | . . 1 . Operator 1 | . 1 . . Watcher 3 | . 3 . . Swarmer 5 | . 5 . . Grunt 8 | . 8 . . Assembled 7 | . . . 7 Best Kill Streak 7 | 2 6 1 7 Combat Bots Only 7 | . 5 . 7 Max Kills in Single Turn 3 | 1 2 1 3 Gunslinging 1 | . . . 1 Exploded 3 | . . . 3 Melee . | . . . . Uniques/NPCs Destroyed . | . . . . Combat | -11 -10 -10 -10 -------- Run | Yrd Mat Min Exi Hostile Shots Fired 119 | . 45 . 74 Missed 28 | . 6 . 22 Damage Taken 1319 | . 405 . 914 Core 254 | . 72 . 182 Absorbed by Shields . | . . . . Core Remaining (%) 100 | 100 . . . Volleys Fired 126 | 10 76 2 38 Largest 2 | 2 2 2 2 Hottest 60 | 60 60 46 56 Shots Fired 210 | 20 134 3 53 Gun 165 | 20 125 2 18 Cannon . | . . . . Launcher 45 | . 9 1 35 Special . | . . . . Kinetic 132 | 10 102 2 18 Thermal . | . . . . Explosive 45 | . 9 1 35 Electromagnetic 33 | 10 23 . . Robot Hit Streak 21 | 4 21 1 10 Robot Miss Streak 5 | 3 4 1 5 Penetration Max . | . . . . Secondary Targets 1 | . . . 1 Max Gunslinging Chain 1 | . . . 1 Shots Hit Robots 113 | 9 75 1 28 Core Hits 56 | 3 31 1 21 Critical Kills 1 | . 1 . . Critical Parts Destroyed 1 | . 1 . . Critical Strikes 2 | . 2 . . Destroy 2 | . 2 . . Melee Attacks . | . . . . Impact . | . . . . Slashing . | . . . . Piercing . | . . . . Sneak Attacks . | . . . . Combat Hostiles . | . . . . Follow-up Attacks . | . . . . Damage Inflicted 1772 | 130 1041 16 585 Guns 1260 | 130 987 16 127 Cannons . | . . . . Explosions 458 | . . . 458 Melee . | . . . . Ramming 54 | . 54 . . Kinetic 939 | 65 731 16 127 Thermal . | . . . . Explosive 458 | . . . 458 Electromagnetic 321 | 65 256 . . Impact . | . . . . Slashing . | . . . . Piercing . | . . . . Highest Corruption 4 | . 4 4 4 Average Corruption 3 | . 3 4 4 Corruption Purged . | . . . . Corruption Blocked . | . . . . Effects 33 | . 22 4 7 Message Errors 8 | . 5 1 2 Matter Fused 12 | . 7 2 3 Heat Flow Errors 2 | . 2 . . Energy Discharges 4 | . 2 1 1 Parts Fused 1 | . 1 . . Data Loss (minor) 2 | . 2 . . Data Loss (major) 1 | . 1 . . Misfires 2 | . 1 . 1 Weapon Failures 1 | . 1 . . Overload Shots . | . . . . Overflow Damage . | . . . . Projectiles . | . . . . Explosions . | . . . . Melee . | . . . . Knockbacks . | . . . . Impact . | . . . . Kinetic . | . . . . Secondary . | . . . . Self-Inflicted Damage . | . . . . Shots . | . . . . Rammed 13 | . 13 . . Targets Rammed 13 | . 13 . . Kicked . | . . . . Crushed . | . . . . Highest Temperature 183 | . 183 2 81 Average Temperature 38 | . 43 1 33 Received Heat Transfer 251 | . 171 . 80 Siege Activations . | . . . . Robots Corrupted . | . . . . Combat Hostiles . | . . . . Parts Fried . | . . . . Impact Corruptions . | . . . . Robots Melted . | . . . . Combat Hostiles . | . . . . Parts Melted . | . . . . Heat Transferred . | . . . . Parts Sabotaged . | . . . . Parts Stolen . | . . . . Parts Stripped . | . . . . Power Chain Reactions . | . . . . Alert | -11 -10 -10 -10 ------- Run | Yrd Mat Min Exi Peak Influence 321 | 15 321 70 . Initial 57 | . 9 57 . Average 135 | 4 148 59 . Maximum Alert Level 1 | . 1 . . Low Security (%) 82 | 100 80 100 . Level 1 17 | . 19 . . Level 2 . | . . . . Level 3 . | . . . . Level 4 . | . . . . Level 5 . | . . . . High Security . | . . . . Max Security . | . . . . Squads Dispatched 2 | . 2 . . Investigation . | . . . . Extermination . | . . . . Reinforcement 2 | . 2 . . Assault . | . . . . Garrison . | . . . . Intercept . | . . . . Searches Triggered . | . . . . Construction Impeded . | . . . . Haulers Reinforced . | . . . . Active Scanning Responses . | . . . . Cargo Convoy Interrupts . | . . . . Stealth | -11 -10 -10 -10 --------- Run | Yrd Mat Min Exi Distress Signals . | . . . . Communications Jammed . | . . . . Distress Signals . | . . . . Times Spotted 38 | . 30 . 8 Peak Tracking Total 10 | . 6 . 10 Tactical Retreats 2 | . 2 . . Traps | -11 -10 -10 -10 ------- Run | Yrd Mat Min Exi Traps Triggered 2 | . 2 . . Indirectly . | . . . . Trap Hack Attempts . | . . . . Triggered . | . . . . Disarmed . | . . . . Reprogrammed . | . . . . Reused . | . . . . Traps Extracted . | . . . . Installed . | . . . . Triggered . | . . . . Machines | -11 -10 -10 -10 ---------- Run | Yrd Mat Min Exi Machines Disabled 16 | . 12 . 4 Max in Single Turn 3 | . 3 . 1 Machines Repaired . | . . . . Machines Dismantled . | . . . . Machines Sabotaged . | . . . . Overloaded Fab Kills . | . . . . Hacking | -11 -10 -10 -10 --------- Run | Yrd Mat Min Exi Machines Accessed 6 | . 5 . 1 Terminals 5 | . 5 . . Fabricators . | . . . . Repair Stations . | . . . . Recycling Units . | . . . . Scanalyzers . | . . . . Garrison Access . | . . . . Total Hacks 21 | . 12 . 9 Successful 13 | . 4 . 9 Failed 8 | . 8 . . Catastrophic 1 | . 1 . . Database Lockouts . | . . . . Manual 12 | . 12 . . Terminals 12 | . 12 . . Fabricators . | . . . . Repair Stations . | . . . . Recycling Units . | . . . . Scanalyzers . | . . . . Garrison Access . | . . . . Terminal Hacks 10 | . 1 . 9 Record 9 | . . . 9 Robot Analysis 1 | . 1 . . Fabricator Hacks . | . . . . Repair Station Hacks . | . . . . Recycling Unit Hacks . | . . . . Scanalyzer . | . . . . Garrison Access Hacks . | . . . . Unauthorized Hacks 3 | . 3 . . Terminals 3 | . 3 . . Botnet 3 | . 3 . . Fabricators . | . . . . Repair Stations . | . . . . Recycling Units . | . . . . Scanalyzers . | . . . . Garrison Access . | . . . . Data Cores Recovered . | . . . . Used . | . . . . Hacking Detections 5 | . 5 . . Full Trace Events . | . . . . Feedback Events . | . . . . Feedback Blocked . | . . . . Robot Schematics Acquired . | . . . . Robots Built . | . . . . Authchips . | . . . . Time . | . . . . Total Robot Build Rating . | . . . . Part Schematics Acquired . | . . . . Parts Built . | . . . . Authchips . | . . . . Time . | . . . . Total Part Build Rating . | . . . . Parts Repaired . | . . . . Time . | . . . . Parts Recycled . | . . . . Recycled Matter . | . . . . Retrieved Matter . | . . . . Retrieved Components . | . . . . Parts Scanalyzed . | . . . . Part Schematics Acquired . | . . . . Parts Damaged . | . . . . Bothacking | -11 -10 -10 -10 ------------ Run | Yrd Mat Min Exi Used RIF Installer . | . . . . Robots Hacked . | . . . . Non-combat . | . . . . Combat . | . . . . Robot Hacks Applied . | . . . . Relay Couplers Released . | . . . . Fabnet Peak Effective % . | . . . . Robots Rewired . | . . . . Allies Hacked . | . . . . Hacks Repelled . | . . . . Allies | -11 -10 -10 -10 -------- Run | Yrd Mat Min Exi Total Allies . | . . . . Largest Group . | . . . . Highest-Rated Group . | . . . . Highest-Rated Ally . | . . . . Total Orders . | . . . . Ally Attacks . | . . . . Total Damage . | . . . . Kills . | . . . . Allies Corrupted . | . . . . Allies Melted . | . . . . Intel | -11 -10 -10 -10 ------- Run | Yrd Mat Min Exi Robot Analysis Total 1 | . 1 . . Derelict Logs Recovered . | . . . . Drone Launches . | . . . . Drone Recoveries . | . . . . Exploration | -11 -10 -10 -10 ------------- Run | Yrd Mat Min Exi Turns Passed 2345 | 114 1843 98 290 Spaces Moved 1137 | 45 886 46 160 Core 63 | 2 . . 61 Treads 1074 | 43 886 46 99 Legs . | . . . . Wheels . | . . . . Hover . | . . . . Flight . | . . . . Fastest Speed 50 | 50 160 160 50 Average Speed 154 | 155 160 160 119 Slowest Speed 240 | 160 160 160 240 Overloaded Moves . | . . . . Propulsion Burnouts . | . . . . Robots Hopped . | . . . . Cave-ins Triggered . | . . . . Exploration Rate (%) 37 | 3 97 13 37 Regions Visited 3 Branch Regions 2 Pre-discovered Areas . | . . . . Known Exits Taken 1 | . 1 . . Unknown Exits Taken 2 | 1 . 1 . Scrap Searched . | . . . . Spaces Dug . | . . . . Terrain Destroyed 160 | . 97 8 55 Melee . | . . . . Projectile . | . . . . AOE 160 | . 97 8 55 Terrain Rammed . | . . . . Walls Destroyed . | . . . . Machines Disabled . | . . . . Actions | -11 -10 -10 -10 --------- Run | Yrd Mat Min Exi Total 1524 | 65 1184 69 206 Wait 182 | . 163 19 . Move 1134 | 44 885 45 160 Hop . | . . . . Pick Up 21 | 3 17 1 . Fast Attach 11 | 7 2 . 2 Attach 1 | . . . 1 Detach 2 | . 2 . . Swap 13 | 1 9 1 2 Drop 21 | . 17 1 3 Fire 126 | 10 76 2 38 Melee . | . . . . Ram . | . . . . Kick . | . . . . Crush 13 | . 13 . . Escape Stasis . | . . . . Rewire . | . . . . Trap . | . . . . Miscellaneous . | . . . . Route ------- -11/Scrapyard -10/Materials (discovered 5 exits: *Mat x3 / *Min x2) -10/Mines -10/Exiles History --------- Turn | Location | Event 33 | -11/Scrapyard | Discovered new exit (range 16) 115 | -11/Scrapyard | Entered Materials 311 | -10/Materials | Build established: Mutant 610 | -10/Materials | Discovered new exit (range 15) 682 | -10/Materials | Identified exit to Materials 865 | -10/Materials | Discovered new exit (range 12) 893 | -10/Materials | Identified exit to Mines 935 | -10/Materials | Discovered exit to Materials (range 3) 1604 | -10/Materials | Discovered exit to Mines (range 16) 1739 | -10/Materials | Discovered exit to Materials (range 14) 1958 | -10/Materials | Entered Mines 1970 | -10/Mines | Found a damaged Exp. Sensor Array with a note attached 1995 | -10/Mines | Received a Rocket Launcher from a helpful Derelict 2045 | -10/Mines | Discovered new exit (range 8) 2056 | -10/Mines | Entered Exiles 2095 | -10/Exiles | Met 8R-AWN 2122 | -10/Exiles | Met EX-HEX 2165 | -10/Exiles | Met EX-BIN 2195 | -10/Exiles | Attacked by the Exiles 2255 | -10/Exiles | Destroyed 7 combat bots 2304 | -10/Exiles | Core integrity fell below 50% 2321 | -10/Exiles | Core integrity fell below 20% 2338 | -10/Exiles | Lost 5 parts (1p1n1u2w) 2346 | -10/Exiles | Destroyed by Nuclear Core chain reaction Last Messages --------------- 02306_ The unstable cave ceiling collapses. 02307_ Penetrated by HV Slug. 02307_ Critical hit (Destroy). 02307_ Hrd. Light Armor Plating destroyed. 02309_ The unstable cave ceiling collapses. 02312_ Penetrated by HV Slug. 02314_ The unstable cave ceiling collapses. 02315_ Dropped Hcp. Matter Pod. 02316_ Penetrated by HV Slug. 02318_ Acquired 9 matter. 02320_ HV Slug penetrates Wall. 02320_ Penetrated by HV Slug. 02324_ The unstable cave ceiling collapses. 02324_ Penetrated by HV Slug. 02324_ HV Slug penetrates Machine. 02324_ Machine disabled. 02324_ Penetrated by HV Slug. 02324_ HV Slug penetrates Wall. 02332_ System corrupted: Matter fused (-10). 02346_ Rigged Nuclear Core explodes. Map ----- +----------------------------------------------------+ | ?????????????????????????????????????????????????? | | ?????????????????????????????????????????????????? | | ?????????????????????????????????????????????????? | | ?????????????????????????????????????????????????? | | ?????????????????????????????????????????????????? | | ?????????????????????????????????????????????????? | | ?????????????????????????????????????????????????? | | ?????????????????????????????????????????????????? | | ?????????????????????????????????????????????????? | | ?????????????????????????????????????????????????? | | ?????????????????????????????????????????????????? | | ?????????????????????????????????????????????????? | | ????????????????????????????????????? ???????????? | | #???????????????????????????????????? ?????????? | | ##??????????????????????????????????? ????????? | | "##?????????????????????????????????# #????????? | | #???????????????????????????????## ##???????? | | ""#???????????????????????????????# #???????? | | "#???????????#####???????????????# #???????? | | "##?????????##" #??????????????## ????????? | | ""###???????#" #?????????????## #?????????? | | """#??????##" ##????????????# #?????????? | | "#????### ###????????### #??????????? | | ##???# ########## #??????????? | | ##?## #""""## #???????????? | | ### @ * ##??????????? | | ## #??????????? | | #### ##?????????? | | ""#?#"""""#### ###???????? | | #"""##?#######??#### * ###?????? | | ######??????????????##### ##????? | | ##???????????????????????### #????? | | ##??????????????????????????### #????? | | ""#?????????????????????????????### #????? | | "##??????????????????????????????#" ##???? | | """"##???????????????????????????????#### ###?? | | #####???????????????????????????????????# ##? | | ????????????????????????????????????????## ## | | ?????????????????????????????????????????### | | ???????????????????????????????????????????# # | | ???????????????????????????????????????????## ## | | ????????????????????????????????????????????#####? | | ?????????????????????????????????????????????????? | | ?????????????????????????????????????????????????? | | ?????????????????????????????????????????????????? | | ?????????????????????????????????????????????????? | | ?????????????????????????????????????????????????? | | ?????????????????????????????????????????????????? | | ?????????????????????????????????????????????????? | | ?????????????????????????????????????????????????? | +----------------------------------------------------+ Best States ------------- Heat Dissipation 25 Energy Generation 10 Energy Capacity 125 Matter Stores 300 Matter Capacity 500 Sight Range 16 Terrain Scan Density 10 Armor Coverage 150 Evasion (%) 50 Recoil Reduction 2 Item Schematics ----------------- None Robot Schematics ------------------ None Fabricated ------------ Nothing Alien Tech Used ----------------- None Achievements -------------- None Challenges ------------ None Game ------ Seed SkeletonSpacefoldPick Manual? 0 Play Time 00:20:38 Cumulative 65.0 hours Start 2024.07.04 @ 23:14:16 End 2024.07.04 @ 23:31:50 Sessions 1 Manual Loads 0 Difficulty Rogue Special Mode None Game No. 59 Rogue 59 Adventurer 0 Explorer 0 Win Type - Total 0 Types 0/0/0/0/0/0/0/0/0 Lore% 21 Gallery% 44 Achievement% 35 Wizard Run 0 Options --------- Layout 0 ASCII 0 Keyboard 1 Movement Numpad Keybinds 0 Fullscreen 2 Font 18/SmallcapsGlow Map View 76x50 Zoom Use 0% Tactical HUD 1 Map Filters NONE Filters NONE Steam 1 RUN: 84c32629-2bdc-45eb-b757-7aba6f8f25f6